Workbook

Sheet 城区初中语文
A1: 乐平市2024年教师招聘成绩表 （城区初中语文）（招聘2人）
A2: 排名 | B2: 姓名 | C2: 准考证号 | D2: 笔试成绩 | E2: 笔试总分（×20%） | F2: 面试成绩 | G2: 面试总分（×50%） | H2: 总成绩
A3: 1 | B3: 胡娴雅 | C3: 153010602721,253010602721 | D3: 204.5 | E3: =D3*0.2 -> 40.90 | F3: 86.63 | G3: =F3*0.5 -> 43.32 | H3: =E3+G3 -> 84.22
A4: 2 | B4: 邓雪琴 | C4: 153050104103,253050104103 | D4: 179.5 | E4: =D4*0.2 -> 35.90 | F4: 81.63 | G4: =F4*0.5 -> 40.82 | H4: =E4+G4 -> 76.72
A5: 3 | B5: 张洁 | C5: 153020103310,253020103310 | D5: 159 | E5: =D5*0.2 -> 31.80 | F5: 84.73 | G5: =F5*0.5 -> 42.37 | H5: =E5+G5 -> 74.17
A6: 4 | B6: 陈烨 | C6: 153010601606,253010601606 | D6: 154.5 | E6: =D6*0.2 -> 30.90 | F6: 82.73 | G6: =F6*0.5 -> 41.37 | H6: =E6+G6 -> 72.27
A7: 5 | B7: 胡美琳 | C7: 153040200804,253040200804 | D7: 155.5 | E7: =D7*0.2 -> 31.10 | F7: 76.77 | G7: =F7*0.5 -> 38.39 | H7: =E7+G7 -> 69.49

Sheet 乐中分校初中英语
A1: 乐平市2024年教师招聘成绩表 （乐中分校初中英语）（招聘1人）
A2: 排名 | B2: 姓名 | C2: 准考证号 | D2: 笔试成绩 | E2: 笔试总分（×20%） | F2: 面试成绩 | G2: 面试总分（×50%） | H2: 总成绩
A3: 1 | B3: 樊启乐 | C3: 153011600924,253011600924 | D3: 196.5 | E3: =D3*0.2 -> 39.30 | F3: 87.13 | G3: =F3*0.5 -> 43.57 | H3: =E3+G3 -> 82.87
A4: 2 | B4: 蔡文雅 | C4: 153020201601,253020201601 | D4: 185 | E4: =D4*0.2 -> 37.00 | F4: 86.53 | G4: =F4*0.5 -> 43.27 | H4: =E4+G4 -> 80.27
A5: 3 | B5: 汪海燕 | C5: 153011600824,253011600824 | D5: 172.5 | E5: =D5*0.2 -> 34.50 | F5: 86.13 | G5: =F5*0.5 -> 43.07 | H5: =E5+G5 -> 77.57

Sheet 乐平二中.初中道德与法治
A1: 乐平市2024年教师招聘成绩表 （乐平二中.初中道德与法治）（招聘1人）
A2: 排名 | B2: 姓名 | C2: 准考证号 | D2: 笔试成绩 | E2: 笔试总分（×20%） | F2: 面试成绩 | G2: 面试总分（×50%） | H2: 总成绩
A3: 1 | B3: 朱芯玉 | C3: 153011401028,253011401028 | D3: 209.5 | E3: =D3*0.2 -> 41.90 | F3: 87.83 | G3: =F3*0.5 -> 43.92 | H3: =E3+G3 -> 85.82
A4: 2 | B4: 刘天晴 | C4: 153011400908,253011400908 | D4: 208 | E4: =D4*0.2 -> 41.60 | F4: 85.37 | G4: =F4*0.5 -> 42.69 | H4: =E4+G4 -> 84.29
A5: 3 | B5: 袁鑫霞 | C5: 153020105401,253020105401 | D5: 164 | E5: =D5*0.2 -> 32.80 | F5: 0.00 | G5: =F5*0.5 -> 0.00 | H5: =E5+G5 -> 32.80

Sheet 城区初中体育与健康
A1: 乐平市2024年教师招聘成绩表 (城区初中体育与健康）（招聘5人）
A2: 排名 | B2: 姓名 | C2: 准考证号 | D2: 笔试成绩 | E2: 笔试总分（×16%） | F2: 面试成绩 | G2: 面试总分（×60%） | H2: 总成绩
A3: 1 | B3: 黄雅云 | C3: 153011401905,253011401905 | D3: 201 | E3: =D3*0.16 -> 32.16 | F3: 82.10 | G3: =F3*0.6 -> 49.26 | H3: =E3+G3 -> 81.42
A4: 2 | B4: 胡楠 | C4: 153011402716,253011402716 | D4: 200 | E4: =D4*0.16 -> 32.00 | F4: 81.33 | G4: =F4*0.6 -> 48.80 | H4: =E4+G4 -> 80.80
A5: 3 | B5: 熊海文 | C5: 153011402807,253011402807 | D5: 193 | E5: =D5*0.16 -> 30.88 | F5: 82.57 | G5: =F5*0.6 -> 49.54 | H5: =E5+G5 -> 80.42
A6: 4 | B6: 肖功华 | C6: 153040401916,253040401916 | D6: 193 | E6: =D6*0.16 -> 30.88 | F6: 82.27 | G6: =F6*0.6 -> 49.36 | H6: =E6+G6 -> 80.24
A7: 5 | B7: 周祺 | C7: 153210300217,253210300217 | D7: 191.5 | E7: =D7*0.16 -> 30.64 | F7: 82.17 | G7: =F7*0.6 -> 49.30 | H7: =E7+G7 -> 79.94
A8: 6 | B8: 占靖 | C8: 153011403006,253011403006 | D8: 195 | E8: =D8*0.16 -> 31.20 | F8: 80.77 | G8: =F8*0.6 -> 48.46 | H8: =E8+G8 -> 79.66
A9: 7 | B9: 谢颖花 | C9: 153210300723,253210300723 | D9: 177.5 | E9: =D9*0.16 -> 28.40 | F9: 82.77 | G9: =F9*0.6 -> 49.66 | H9: =E9+G9 -> 78.06
A10: 8 | B10: 张智辉 | C10: 153230102414,253230102414 | D10: 171.5 | E10: =D10*0.16 -> 27.44 | F10: 81.23 | G10: =F10*0.6 -> 48.74 | H10: =E10+G10 -> 76.18
A11: 9 | B11: 李子睿 | C11: 153020105702,253020105702 | D11: 178.5 | E11: =D11*0.16 -> 28.56 | F11: 79.2 | G11: =F11*0.6 -> 47.52 | H11: =E11+G11 -> 76.08
A12: 10 | B12: 徐欢 | C12: 153011402728,253011402728 | D12: 175 | E12: =D12*0.16 -> 28.00 | F12: 79.8 | G12: =F12*0.6 -> 47.88 | H12: =E12+G12 -> 75.88
A13: 11 | B13: 郭巍 | C13: 153011402820,253011402820 | D13: 167 | E13: =D13*0.16 -> 26.72 | F13: 81.7 | G13: =F13*0.6 -> 49.02 | H13: =E13+G13 -> 75.74
A14: 12 | B14: 黄福平 | C14: 153230102530,253230102530 | D14: 172 | E14: =D14*0.16 -> 27.52 | F14: 78.97 | G14: =F14*0.6 -> 47.38 | H14: =E14+G14 -> 74.90
A15: 13 | B15: 罗艳 | C15: 153220205312,253220205312 | D15: 173 | E15: =D15*0.16 -> 27.68 | F15: 0 | G15: =F15*0.6 -> 0.00 | H15: =E15+G15 -> 27.68
A16: 14 | B16: 方园 | C16: 153250106605,253250106605 | D16: 162.5 | E16: =D16*0.16 -> 26.00 | F16: 0 | G16: =F16*0.6 -> 0.00 | H16: =E16+G16 -> 26.00

Sheet 乐平六中.限退役军人.体育与健康
A1: 乐平市2024年教师招聘成绩表 (乐平六中.限退役军人.体育与健康）（招聘1人）
A2: 排名 | B2: 姓名 | C2: 准考证号 | D2: 笔试成绩 | E2: 笔试总分（×16%） | F2: 面试成绩 | G2: 面试总分（×60%） | H2: 总成绩
A3: 1 | B3: 刘晴 | C3: 153011401529,253011401529 | D3: 143.5 | E3: =D3*0.16 -> 22.96 | F3: 83.67 | G3: =F3*0.6 -> 50.20 | H3: =E3+G3 -> 73.16
A4: 2 | B4: 占峰 | C4: 153020105509,253020105509 | D4: 100.5 | E4: =D4*0.16 -> 16.08 | F4: 78.33 | G4: =F4*0.6 -> 47.00 | H4: =E4+G4 -> 63.08
A5: 3 | B5: 章鸿志 | C5: 153020105517,253020105517 | D5: 99 | E5: =D5*0.16 -> 15.84 | F5: 77.7 | G5: =F5*0.6 -> 46.62 | H5: =E5+G5 -> 62.46

Sheet 城区初中美术
A1: 乐平市2024年教师招聘成绩表 (城区初中美术）（招聘2人）
A2: 排名 | B2: 姓名 | C2: 准考证号 | D2: 笔试成绩 | E2: 笔试总分（×16%） | F2: 面试成绩 | G2: 面试总分（×60%） | H2: 总成绩
A3: 1 | B3: 卢燕玲 | C3: 153011602426,253011602426 | D3: 209.5 | E3: =D3*0.16 -> 33.52 | F3: 87.17 | G3: =F3*0.6 -> 52.30 | H3: =E3+G3 -> 85.82
A4: 2 | B4: 甘丽雯 | C4: 153011602618,253011602618 | D4: 204.5 | E4: =D4*0.16 -> 32.72 | F4: 88.37 | G4: =F4*0.6 -> 53.02 | H4: =E4+G4 -> 85.74
A5: 3 | B5: 董诗芬 | C5: 153020104730,253020104730 | D5: 205 | E5: =D5*0.16 -> 32.80 | F5: 87.4 | G5: =F5*0.6 -> 52.44 | H5: =E5+G5 -> 85.24
A6: 4 | B6: 郭莹 | C6: 153011602710,253011602710 | D6: 202.5 | E6: =D6*0.16 -> 32.40 | F6: 87.43 | G6: =F6*0.6 -> 52.46 | H6: =E6+G6 -> 84.86
A7: 5 | B7: 徐皓楠 | C7: 153020104430,253020104430 | D7: 200 | E7: =D7*0.16 -> 32.00 | F7: 86.83 | G7: =F7*0.6 -> 52.10 | H7: =E7+G7 -> 84.10
A8: 6 | B8: 谢玥 | C8: 153220205611,253220205611 | D8: 200.5 | E8: =D8*0.16 -> 32.08 | F8: 82.03 | G8: =F8*0.6 -> 49.22 | H8: =E8+G8 -> 81.30

Sheet 乐中分校.初中音乐
A1: 乐平市2024年教师招聘成绩表 (乐中分校.初中音乐）（招聘1人）
A2: 排名 | B2: 姓名 | C2: 准考证号 | D2: 笔试成绩 | E2: 笔试总分（×16%） | F2: 面试成绩 | G2: 面试总分（×60%） | H2: 总成绩
A3: 1 | B3: 罗佳怡 | C3: 153020102122,253020102122 | D3: 183.5 | E3: =D3*0.16 -> 29.36 | F3: 83.27 | G3: =F3*0.6 -> 49.96 | H3: =E3+G3 -> 79.32
A4: 2 | B4: 胡龙涛 | C4: 153240200203,253240200203 | D4: 179 | E4: =D4*0.16 -> 28.64 | F4: 81.8 | G4: =F4*0.6 -> 49.08 | H4: =E4+G4 -> 77.72
A5: 3 | B5: 方文瑾 | C5: 153020102115,253020102115 | D5: 167 | E5: =D5*0.16 -> 26.72 | F5: 84.33 | G5: =F5*0.6 -> 50.60 | H5: =E5+G5 -> 77.32

Sheet 城区初中历史
A1: 乐平市2024年教师招聘成绩表 （城区初中历史）（招聘2人）
A2: 排名 | B2: 姓名 | C2: 准考证号 | D2: 笔试成绩 | E2: 笔试总分（×20%） | F2: 面试成绩 | G2: 面试总分（×50%） | H2: 总成绩
A3: 1 | B3: 胡青青 | C3: 153011001522,253011001522 | D3: 185.5 | E3: =D3*0.2 -> 37.10 | F3: 85.83 | G3: =F3*0.5 -> 42.92 | H3: =E3+G3 -> 80.02
A4: 2 | B4: 陈璐芸 | C4: 153040403411,253040403411 | D4: 178.5 | E4: =D4*0.2 -> 35.70 | F4: 85.50 | G4: =F4*0.5 -> 42.75 | H4: =E4+G4 -> 78.45
A5: 3 | B5: 马杏杏 | C5: 153250107612,253250107612 | D5: 165 | E5: =D5*0.2 -> 33.00 | F5: 85.17 | G5: =F5*0.5 -> 42.59 | H5: =E5+G5 -> 75.59

Sheet 乐平二中.初中地理
A1: 乐平市2024年教师招聘成绩表 （乐平二中.初中地理）（招聘1人）
A2: 排名 | B2: 姓名 | C2: 准考证号 | D2: 笔试成绩 | E2: 笔试总分（×20%） | F2: 面试成绩 | G2: 面试总分（×50%） | H2: 总成绩
A3: 1 | B3: 左卢燕 | C3: 153040403824,253040403824 | D3: 177.5 | E3: =D3*0.2 -> 35.50 | F3: 84.90 | G3: =F3*0.5 -> 42.45 | H3: =E3+G3 -> 77.95
A4: 2 | B4: 汪盛豪 | C4: 153011500520,253011500520 | D4: 183 | E4: =D4*0.2 -> 36.60 | F4: 82.67 | G4: =F4*0.5 -> 41.34 | H4: =E4+G4 -> 77.94

Sheet 城区初中化学
A1: 乐平市2024年教师招聘成绩表 （城区初中化学）（招聘2人）
A2: 排名 | B2: 姓名 | C2: 准考证号 | D2: 笔试成绩 | E2: 笔试总分（×20%） | F2: 面试成绩 | G2: 面试总分（×50%） | H2: 总成绩
A3: 1 | B3: 王怡青 | C3: 153011501515,253011501515 | D3: 186.5 | E3: =D3*0.2 -> 37.30 | F3: 83.43 | G3: =F3*0.5 -> 41.72 | H3: =E3+G3 -> 79.02
A4: 2 | B4: 万斌 | C4: 153020103624,253020103624 | D4: 166.5 | E4: =D4*0.2 -> 33.30 | F4: 84.23 | G4: =F4*0.5 -> 42.12 | H4: =E4+G4 -> 75.42
A5: 3 | B5: 石佳琪 | C5: 153020103614,253020103614 | D5: 162.5 | E5: =D5*0.2 -> 32.50 | F5: 85.03 | G5: =F5*0.5 -> 42.52 | H5: =E5+G5 -> 75.02

Sheet 城区初中物理
A1: 乐平市2024年教师招聘成绩表 （城区初中物理）（招聘2人）
A2: 排名 | B2: 姓名 | C2: 准考证号 | D2: 笔试成绩 | E2: 笔试总分（×20%） | F2: 面试成绩 | G2: 面试总分（×50%） | H2: 总成绩
A3: 1 | B3: 胡立新 | C3: 153020201109,253020201109 | D3: 190.5 | E3: =D3*0.2 -> 38.10 | F3: 84.47 | G3: =F3*0.5 -> 42.24 | H3: =E3+G3 -> 80.34
A4: 2 | B4: 董杨明 | C4: 153020201201,253020201201 | D4: 186.5 | E4: =D4*0.2 -> 37.30 | F4: 85.90 | G4: =F4*0.5 -> 42.95 | H4: =E4+G4 -> 80.25
A5: 3 | B5: 罗婷婷 | C5: 153040602703,253040602703 | D5: 174 | E5: =D5*0.2 -> 34.80 | F5: 81.53 | G5: =F5*0.5 -> 40.77 | H5: =E5+G5 -> 75.57
A6: 4 | B6: 汪雅静 | C6: 153230104012,253230104012 | D6: 144.5 | E6: =D6*0.2 -> 28.90 | F6: 0 | G6: =F6*0.5 -> 0.00 | H6: =E6+G6 -> 28.90

Sheet 高中语文.限高校应届生
A1: 乐平市2024年教师招聘成绩表 （高中语文.限高校应届生）（招聘12人）
A2: 排名 | B2: 姓名 | C2: 准考证号 | D2: 笔试成绩 | E2: 笔试总分（×20%） | F2: 面试成绩 | G2: 面试总分（×50%） | H2: 总成绩
A3: 1 | B3: 程爱华 | C3: 153011003505,253011003505 | D3: 205.5 | E3: =D3*0.2 -> 41.10 | F3: 85.13 | G3: =F3*0.5 -> 42.57 | H3: =E3+G3 -> 83.67
A4: 2 | B4: 余梦莹 | C4: 153020202519,253020202519 | D4: 195.5 | E4: =D4*0.2 -> 39.10 | F4: 85.60 | G4: =F4*0.5 -> 42.80 | H4: =E4+G4 -> 81.90
A5: 3 | B5: 张子怡 | C5: 153011003927,253011003927 | D5: 195.5 | E5: =D5*0.2 -> 39.10 | F5: 85 | G5: =F5*0.5 -> 42.50 | H5: =E5+G5 -> 81.60
A6: 4 | B6: 黄子瑶 | C6: 153020202607,253020202607 | D6: 189.5 | E6: =D6*0.2 -> 37.90 | F6: 86.9 | G6: =F6*0.5 -> 43.45 | H6: =E6+G6 -> 81.35
A7: 5 | B7: 叶紫妍 | C7: 153020202408,253020202408 | D7: 183.5 | E7: =D7*0.2 -> 36.70 | F7: 86.43 | G7: =F7*0.5 -> 43.22 | H7: =E7+G7 -> 79.92
A8: 6 | B8: 叶薇薇 | C8: 153230300302,253230300302 | D8: 185.5 | E8: =D8*0.2 -> 37.10 | F8: 85 | G8: =F8*0.5 -> 42.50 | H8: =E8+G8 -> 79.60
A9: 7 | B9: 王紫燕 | C9: 153011003705,253011003705 | D9: 188.5 | E9: =D9*0.2 -> 37.70 | F9: 83.5 | G9: =F9*0.5 -> 41.75 | H9: =E9+G9 -> 79.45
A10: 8 | B10: 汪梦莹 | C10: 153240202230,253240202230 | D10: 184 | E10: =D10*0.2 -> 36.80 | F10: 84.07 | G10: =F10*0.5 -> 42.04 | H10: =E10+G10 -> 78.84
A11: 9 | B11: 马丹霞 | C11: 153020202625,253020202625 | D11: 175 | E11: =D11*0.2 -> 35.00 | F11: 86.47 | G11: =F11*0.5 -> 43.24 | H11: =E11+G11 -> 78.24
A12: 10 | B12: 曹宇威 | C12: 153020202601,253020202601 | D12: 176 | E12: =D12*0.2 -> 35.20 | F12: 85.2 | G12: =F12*0.5 -> 42.60 | H12: =E12+G12 -> 77.80
A13: 11 | B13: 高怡然 | C13: 153011100203,253011100203 | D13: 176 | E13: =D13*0.2 -> 35.20 | F13: 84.73 | G13: =F13*0.5 -> 42.37 | H13: =E13+G13 -> 77.57
A14: 12 | B14: 陈慧琳 | C14: 153040600701,253040600701 | D14: 178 | E14: =D14*0.2 -> 35.60 | F14: 83.87 | G14: =F14*0.5 -> 41.94 | H14: =E14+G14 -> 77.54
A15: 13 | B15: 胡丽华 | C15: 153020202322,253020202322 | D15: 171 | E15: =D15*0.2 -> 34.20 | F15: 86.4 | G15: =F15*0.5 -> 43.20 | H15: =E15+G15 -> 77.40
A16: 14 | B16: 洪艳 | C16: 153020202605,253020202605 | D16: 175 | E16: =D16*0.2 -> 35.00 | F16: 84.17 | G16: =F16*0.5 -> 42.09 | H16: =E16+G16 -> 77.09
A17: 15 | B17: 汪瑜冰 | C17: 153020202830,253020202830 | D17: 174 | E17: =D17*0.2 -> 34.80 | F17: 84.2 | G17: =F17*0.5 -> 42.10 | H17: =E17+G17 -> 76.90
A18: 16 | B18: 吴剑汉 | C18: 153020202724,253020202724 | D18: 161 | E18: =D18*0.2 -> 32.20 | F18: 84.87 | G18: =F18*0.5 -> 42.44 | H18: =E18+G18 -> 74.64
A19: 17 | B19: 周新雷 | C19: 153011100420,253011100420 | D19: 162 | E19: =D19*0.2 -> 32.40 | F19: 83.27 | G19: =F19*0.5 -> 41.64 | H19: =E19+G19 -> 74.04
A20: 18 | B20: 李莉珍 | C20: 153011100705,253011100705 | D20: 163 | E20: =D20*0.2 -> 32.60 | F20: 81.93 | G20: =F20*0.5 -> 40.97 | H20: =E20+G20 -> 73.57
A21: 19 | B21: 张冬贵 | C21: 153020202503,253020202503 | D21: 158.5 | E21: =D21*0.2 -> 31.70 | F21: 83.63 | G21: =F21*0.5 -> 41.82 | H21: =E21+G21 -> 73.52
A22: 20 | B22: 李敏娜 | C22: 153020202613,253020202613 | D22: 158.5 | E22: =D22*0.2 -> 31.70 | F22: 82.57 | G22: =F22*0.5 -> 41.29 | H22: =E22+G22 -> 72.99
A23: 21 | B23: 虞洁莹 | C23: 153011100107,253011100107 | D23: 161 | E23: =D23*0.2 -> 32.20 | F23: 80.93 | G23: =F23*0.5 -> 40.47 | H23: =E23+G23 -> 72.67
A24: 22 | B24: 胡雅娉 | C24: 153011003630,253011003630 | D24: 153 | E24: =D24*0.2 -> 30.60 | F24: 83.4 | G24: =F24*0.5 -> 41.70 | H24: =E24+G24 -> 72.30

Sheet 乐平十中.高中语文
A1: 乐平市2024年教师招聘成绩表 （乐平十中.高中语文）（招聘7人）
A2: 排名 | B2: 姓名 | C2: 准考证号 | D2: 笔试成绩 | E2: 笔试总分（×20%） | F2: 面试成绩 | G2: 面试总分（×50%） | H2: 总成绩
A3: 1 | B3: 李维 | C3: 153011100301,253011100301 | D3: 200 | E3: =D3*0.2 -> 40.00 | F3: 84.40 | G3: =F3*0.5 -> 42.20 | H3: =E3+G3 -> 82.20
A4: 2 | B4: 黄文惠 | C4: 153020202627,253020202627 | D4: 198 | E4: =D4*0.2 -> 39.60 | F4: 83.33 | G4: =F4*0.5 -> 41.67 | H4: =E4+G4 -> 81.27
A5: 3 | B5: 邵小华 | C5: 153020202917,253020202917 | D5: 191.5 | E5: =D5*0.2 -> 38.30 | F5: 85.9 | G5: =F5*0.5 -> 42.95 | H5: =E5+G5 -> 81.25
A6: 4 | B6: 万晨曦 | C6: 153060105507,253060105507 | D6: 169.5 | E6: =D6*0.2 -> 33.90 | F6: 85.67 | G6: =F6*0.5 -> 42.84 | H6: =E6+G6 -> 76.74
A7: 5 | B7: 华巧珍 | C7: 153220102523,253220102523 | D7: 175.5 | E7: =D7*0.2 -> 35.10 | F7: 82.63 | G7: =F7*0.5 -> 41.32 | H7: =E7+G7 -> 76.42
A8: 6 | B8: 徐曾亮 | C8: 153020202423,253020202423 | D8: 164.5 | E8: =D8*0.2 -> 32.90 | F8: 85.5 | G8: =F8*0.5 -> 42.75 | H8: =E8+G8 -> 75.65
A9: 7 | B9: 王睿 | C9: 153020202703,253020202703 | D9: 166 | E9: =D9*0.2 -> 33.20 | F9: 84.47 | G9: =F9*0.5 -> 42.24 | H9: =E9+G9 -> 75.44
A10: 8 | B10: 程慧仁 | C10: 153230300606,253230300606 | D10: 162 | E10: =D10*0.2 -> 32.40 | F10: 84.57 | G10: =F10*0.5 -> 42.29 | H10: =E10+G10 -> 74.69
A11: 9 | B11: 胡嘉诗 | C11: 153220102217,253220102217 | D11: 161.5 | E11: =D11*0.2 -> 32.30 | F11: 84.73 | G11: =F11*0.5 -> 42.37 | H11: =E11+G11 -> 74.67
A12: 10 | B12: 柴六凤 | C12: 153020202522,253020202522 | D12: 164 | E12: =D12*0.2 -> 32.80 | F12: 82.97 | G12: =F12*0.5 -> 41.49 | H12: =E12+G12 -> 74.29
A13: 11 | B13: 齐小莉 | C13: 153230301002,253230301002 | D13: 158.25 | E13: =D13*0.2 -> 31.65 | F13: 84.77 | G13: =F13*0.5 -> 42.39 | H13: =E13+G13 -> 74.04
A14: 12 | B14: 邹碧云 | C14: 153210501201,253210501201 | D14: 164.5 | E14: =D14*0.2 -> 32.90 | F14: 81.6 | G14: =F14*0.5 -> 40.80 | H14: =E14+G14 -> 73.70
A15: 13 | B15: 阮献玲 | C15: 153020202402,253020202402 | D15: 164.5 | E15: =D15*0.2 -> 32.90 | F15: 81.53 | G15: =F15*0.5 -> 40.77 | H15: =E15+G15 -> 73.67
A16: 14 | B16: 谢观秀 | C16: 153050106923,253050106923 | D16: 151.5 | E16: =D16*0.2 -> 30.30 | F16: 83.33 | G16: =F16*0.5 -> 41.67 | H16: =E16+G16 -> 71.97
A17: 15 | B17: 黎佳敏 | C17: 153020202807,253020202807 | D17: 152 | E17: =D17*0.2 -> 30.40 | F17: 82.23 | G17: =F17*0.5 -> 41.12 | H17: =E17+G17 -> 71.52
A18: 16 | B18: 周晓丽 | C18: 153020202523,253020202523 | D18: 159 | E18: =D18*0.2 -> 31.80 | F18: 0 | G18: =F18*0.5 -> 0.00 | H18: =E18+G18 -> 31.80

Sheet 高中数学.限高校应届生
A1: 乐平市2024年教师招聘成绩表 （高中数学.限高校应届生）（招聘12人）
A2: 排名 | B2: 姓名 | C2: 准考证号 | D2: 笔试成绩 | E2: 笔试总分（×20%） | F2: 面试成绩 | G2: 面试总分（×50%） | H2: 总成绩
A3: 1 | B3: 彭艳琴 | C3: 153020200919,253020200919 | D3: 209.5 | E3: =D3*0.2 -> 41.90 | F3: 84.9 | G3: =F3*0.5 -> 42.45 | H3: =E3+G3 -> 84.35
A4: 2 | B4: 王雪儿 | C4: 153020200415,253020200415 | D4: 213 | E4: =D4*0.2 -> 42.60 | F4: 82.9 | G4: =F4*0.5 -> 41.45 | H4: =E4+G4 -> 84.05
A5: 3 | B5: 余紫欣 | C5: 153020200805,253020200805 | D5: 211 | E5: =D5*0.2 -> 42.20 | F5: 80.33 | G5: =F5*0.5 -> 40.17 | H5: =E5+G5 -> 82.37
A6: 4 | B6: 李欣怡 | C6: 153020200313,253020200313 | D6: 196.5 | E6: =D6*0.2 -> 39.30 | F6: 85.67 | G6: =F6*0.5 -> 42.84 | H6: =E6+G6 -> 82.14
A7: 5 | B7: 程慧慧 | C7: 153020200823,253020200823 | D7: 197 | E7: =D7*0.2 -> 39.40 | F7: 83.97 | G7: =F7*0.5 -> 41.99 | H7: =E7+G7 -> 81.39
A8: 6 | B8: 李晓 | C8: 153230301527,253230301527 | D8: 195 | E8: =D8*0.2 -> 39.00 | F8: 82.8 | G8: =F8*0.5 -> 41.40 | H8: =E8+G8 -> 80.40
A9: 7 | B9: 吴文婷 | C9: 153020200810,253020200810 | D9: 193.5 | E9: =D9*0.2 -> 38.70 | F9: 83.07 | G9: =F9*0.5 -> 41.54 | H9: =E9+G9 -> 80.24
A10: 8 | B10: 胡禹童 | C10: 153011502319,253011502319 | D10: 189.5 | E10: =D10*0.2 -> 37.90 | F10: 84.03 | G10: =F10*0.5 -> 42.02 | H10: =E10+G10 -> 79.92
A11: 9 | B11: 余佳琪 | C11: 153020200304,253020200304 | D11: 190 | E11: =D11*0.2 -> 38.00 | F11: 83.67 | G11: =F11*0.5 -> 41.84 | H11: =E11+G11 -> 79.84
A12: 10 | B12: 张文清 | C12: 153020200505,253020200505 | D12: 186.5 | E12: =D12*0.2 -> 37.30 | F12: 84.27 | G12: =F12*0.5 -> 42.14 | H12: =E12+G12 -> 79.44
A13: 10 | B13: 匡芳琳 | C13: 153011504018,253011504018 | D13: 189.5 | E13: =D13*0.2 -> 37.90 | F13: 83.07 | G13: =F13*0.5 -> 41.54 | H13: =E13+G13 -> 79.44
A14: 12 | B14: 黎梦珍 | C14: 153020200924,253020200924 | D14: 187.5 | E14: =D14*0.2 -> 37.50 | F14: 83.13 | G14: =F14*0.5 -> 41.57 | H14: =E14+G14 -> 79.07
A15: 13 | B15: 徐晶晶 | C15: 153011503102,253011503102 | D15: 191 | E15: =D15*0.2 -> 38.20 | F15: 81.07 | G15: =F15*0.5 -> 40.54 | H15: =E15+G15 -> 78.74
A16: 14 | B16: 叶甜心 | C16: 153011503015,253011503015 | D16: 184.5 | E16: =D16*0.2 -> 36.90 | F16: 83.43 | G16: =F16*0.5 -> 41.72 | H16: =E16+G16 -> 78.62
A17: 15 | B17: 戴丽贞 | C17: 153040203912,253040203912 | D17: 172.5 | E17: =D17*0.2 -> 34.50 | F17: 83.9 | G17: =F17*0.5 -> 41.95 | H17: =E17+G17 -> 76.45
A18: 16 | B18: 赵易红 | C18: 153020200330,253020200330 | D18: 178.5 | E18: =D18*0.2 -> 35.70 | F18: 81.37 | G18: =F18*0.5 -> 40.69 | H18: =E18+G18 -> 76.39
A19: 17 | B19: 王晓军 | C19: 153011503023,253011503023 | D19: 175 | E19: =D19*0.2 -> 35.00 | F19: 82.67 | G19: =F19*0.5 -> 41.34 | H19: =E19+G19 -> 76.34
A20: 18 | B20: 高晓婷 | C20: 153020200325,253020200325 | D20: 178 | E20: =D20*0.2 -> 35.60 | F20: 81.4 | G20: =F20*0.5 -> 40.70 | H20: =E20+G20 -> 76.30
A21: 19 | B21: 谢子琪 | C21: 153011502926,253011502926 | D21: 178 | E21: =D21*0.2 -> 35.60 | F21: 81.3 | G21: =F21*0.5 -> 40.65 | H21: =E21+G21 -> 76.25
A22: 20 | B22: 程敏慧 | C22: 153020200730,253020200730 | D22: 172 | E22: =D22*0.2 -> 34.40 | F22: 82.73 | G22: =F22*0.5 -> 41.37 | H22: =E22+G22 -> 75.77
A23: 21 | B23: 徐田妹 | C23: 153020200630,253020200630 | D23: 174 | E23: =D23*0.2 -> 34.80 | F23: 79.53 | G23: =F23*0.5 -> 39.77 | H23: =E23+G23 -> 74.57
A24: 22 | B24: 方美英 | C24: 153020200903,253020200903 | D24: 170 | E24: =D24*0.2 -> 34.00 | F24: 78.7 | G24: =F24*0.5 -> 39.35 | H24: =E24+G24 -> 73.35
A25: 23 | B25: 吴烈喜 | C25: 153011503809,253011503809 | D25: 168.5 | E25: =D25*0.2 -> 33.70 | F25: 77.07 | G25: =F25*0.5 -> 38.54 | H25: =E25+G25 -> 72.24

Sheet 十中高中数学
A1: 乐平市2024年教师招聘成绩表 （十中高中数学）（招聘5人）
A2: 排名 | B2: 姓名 | C2: 准考证号 | D2: 笔试成绩 | E2: 笔试总分（×20%） | F2: 面试成绩 | G2: 面试总分（×50%） | H2: 总成绩
A3: 1 | B3: 黄一凡 | C3: 153020200625,253020200625 | D3: 214 | E3: =D3*0.2 -> 42.80 | F3: 81.80 | G3: =F3*0.5 -> 40.90 | H3: =E3+G3 -> 83.70
A4: 2 | B4: 黄鲲 | C4: 153011502404,253011502404 | D4: 211.5 | E4: =D4*0.2 -> 42.30 | F4: 82.63 | G4: =F4*0.5 -> 41.32 | H4: =E4+G4 -> 83.62
A5: 3 | B5: 徐啸东 | C5: 153011503923,253011503923 | D5: 204 | E5: =D5*0.2 -> 40.80 | F5: 84.93 | G5: =F5*0.5 -> 42.47 | H5: =E5+G5 -> 83.27
A6: 4 | B6: 朱家桢 | C6: 153020200623,253020200623 | D6: 199 | E6: =D6*0.2 -> 39.80 | F6: 84.73 | G6: =F6*0.5 -> 42.37 | H6: =E6+G6 -> 82.17
A7: 5 | B7: 方雪芬 | C7: 153030209522,253030209522 | D7: 195.5 | E7: =D7*0.2 -> 39.10 | F7: 85.4 | G7: =F7*0.5 -> 42.70 | H7: =E7+G7 -> 81.80
A8: 6 | B8: 伍琦 | C8: 153011503724,253011503724 | D8: 192.5 | E8: =D8*0.2 -> 38.50 | F8: 84.4 | G8: =F8*0.5 -> 42.20 | H8: =E8+G8 -> 80.70
A9: 7 | B9: 方宇轩 | C9: 153011503617,253011503617 | D9: 188.5 | E9: =D9*0.2 -> 37.70 | F9: 78.73 | G9: =F9*0.5 -> 39.37 | H9: =E9+G9 -> 77.07
A10: 8 | B10: 盛雨露 | C10: 153020200723,253020200723 | D10: 175 | E10: =D10*0.2 -> 35.00 | F10: 83.13 | G10: =F10*0.5 -> 41.57 | H10: =E10+G10 -> 76.57
A11: 9 | B11: 邹方铭 | C11: 153011502112,253011502112 | D11: 183.5 | E11: =D11*0.2 -> 36.70 | F11: 78.2 | G11: =F11*0.5 -> 39.10 | H11: =E11+G11 -> 75.80
A12: 10 | B12: 曹云萍 | C12: 153230301917,253230301917 | D12: 173.5 | E12: =D12*0.2 -> 34.70 | F12: 80.43 | G12: =F12*0.5 -> 40.22 | H12: =E12+G12 -> 74.92
A13: 11 | B13: 余颖 | C13: 153020200324,253020200324 | D13: 174 | E13: =D13*0.2 -> 34.80 | F13: 78.47 | G13: =F13*0.5 -> 39.24 | H13: =E13+G13 -> 74.04
A14: 12 | B14: 何李思源 | C14: 153020200301,253020200301 | D14: 173 | E14: =D14*0.2 -> 34.60 | F14: 78.17 | G14: =F14*0.5 -> 39.09 | H14: =E14+G14 -> 73.69
A15: 13 | B15: 盛小根 | C15: 153020200905,253020200905 | D15: 173.5 | E15: =D15*0.2 -> 34.70 | F15: 74.07 | G15: =F15*0.5 -> 37.04 | H15: =E15+G15 -> 71.74
A16: 14 | B16: 章婉卿 | C16: 153060105629,253060105629 | D16: 180 | E16: =D16*0.2 -> 36.00 | F16: 0 | G16: =F16*0.5 -> 0.00 | H16: =E16+G16 -> 36.00
A17: 15 | B17: 王峰辉 | C17: 153011503119,253011503119 | D17: 172.5 | E17: =D17*0.2 -> 34.50 | F17: 0 | G17: =F17*0.5 -> 0.00 | H17: =E17+G17 -> 34.50

Sheet 高中英语.限高校应届生
A1: 乐平市2024年教师招聘成绩表 （高中英语.限高校应届生）（招聘12人）
A2: 排名 | B2: 姓名 | C2: 准考证号 | D2: 笔试成绩 | E2: 笔试总分（×20%） | F2: 面试成绩 | G2: 面试总分（×50%） | H2: 总成绩
A3: 1 | B3: 马逸敏 | C3: 153010904208,253010904208 | D3: 196 | E3: =D3*0.2 -> 39.20 | F3: 87.03 | G3: =F3*0.5 -> 43.52 | H3: =E3+G3 -> 82.72
A4: 2 | B4: 王慧颖 | C4: 153010906016,253010906016 | D4: 194 | E4: =D4*0.2 -> 38.80 | F4: 87.07 | G4: =F4*0.5 -> 43.54 | H4: =E4+G4 -> 82.34
A5: 3 | B5: 雷学勤 | C5: 153020100605,253020100605 | D5: 193.5 | E5: =D5*0.2 -> 38.70 | F5: 86.43 | G5: =F5*0.5 -> 43.22 | H5: =E5+G5 -> 81.92
A6: 4 | B6: 邓佳庆 | C6: 153010904804,253010904804 | D6: 189.5 | E6: =D6*0.2 -> 37.90 | F6: 86.67 | G6: =F6*0.5 -> 43.34 | H6: =E6+G6 -> 81.24
A7: 5 | B7: 吴佳颖 | C7: 153020100919,253020100919 | D7: 186.5 | E7: =D7*0.2 -> 37.30 | F7: 86.9 | G7: =F7*0.5 -> 43.45 | H7: =E7+G7 -> 80.75
A8: 5 | B8: 李炉婷 | C8: 153020100503,253020100503 | D8: 187.5 | E8: =D8*0.2 -> 37.50 | F8: 86.5 | G8: =F8*0.5 -> 43.25 | H8: =E8+G8 -> 80.75
A9: 7 | B9: 汪漫丽 | C9: 153020100730,253020100730 | D9: 186.5 | E9: =D9*0.2 -> 37.30 | F9: 86.8 | G9: =F9*0.5 -> 43.40 | H9: =E9+G9 -> 80.70
A10: 8 | B10: 彭冰冰 | C10: 153020100215,253020100215 | D10: 190.5 | E10: =D10*0.2 -> 38.10 | F10: 85.1 | G10: =F10*0.5 -> 42.55 | H10: =E10+G10 -> 80.65
A11: 9 | B11: 黎晓婉 | C11: 153020100601,253020100601 | D11: 185 | E11: =D11*0.2 -> 37.00 | F11: 87.07 | G11: =F11*0.5 -> 43.54 | H11: =E11+G11 -> 80.54
A12: 10 | B12: 徐静璐 | C12: 153010903214,253010903214 | D12: 185.5 | E12: =D12*0.2 -> 37.10 | F12: 86.67 | G12: =F12*0.5 -> 43.34 | H12: =E12+G12 -> 80.44
A13: 11 | B13: 程梦茜 | C13: 153010904729,253010904729 | D13: 185 | E13: =D13*0.2 -> 37.00 | F13: 86.83 | G13: =F13*0.5 -> 43.42 | H13: =E13+G13 -> 80.42
A14: 12 | B14: 游晶晶 | C14: 153020100212,253020100212 | D14: 185.5 | E14: =D14*0.2 -> 37.10 | F14: 86.33 | G14: =F14*0.5 -> 43.17 | H14: =E14+G14 -> 80.27
A15: 13 | B15: 王霞 | C15: 153020100109,253020100109 | D15: 184.5 | E15: =D15*0.2 -> 36.90 | F15: 86.53 | G15: =F15*0.5 -> 43.27 | H15: =E15+G15 -> 80.17
A16: 14 | B16: 丁烟紫 | C16: 153020100619,253020100619 | D16: 184.5 | E16: =D16*0.2 -> 36.90 | F16: 86.37 | G16: =F16*0.5 -> 43.19 | H16: =E16+G16 -> 80.09
A17: 15 | B17: 肖丹 | C17: 153010905821,253010905821 | D17: 182 | E17: =D17*0.2 -> 36.40 | F17: 86.73 | G17: =F17*0.5 -> 43.37 | H17: =E17+G17 -> 79.77
A18: 16 | B18: 郭咸英 | C18: 153210602005,253210602005 | D18: 183 | E18: =D18*0.2 -> 36.60 | F18: 86.17 | G18: =F18*0.5 -> 43.09 | H18: =E18+G18 -> 79.69
A19: 17 | B19: 胡慧娟 | C19: 153010903608,253010903608 | D19: 181.5 | E19: =D19*0.2 -> 36.30 | F19: 86.77 | G19: =F19*0.5 -> 43.39 | H19: =E19+G19 -> 79.69
A20: 18 | B20: 魏志高 | C20: 153010904210,253010904210 | D20: 181.5 | E20: =D20*0.2 -> 36.30 | F20: 86.5 | G20: =F20*0.5 -> 43.25 | H20: =E20+G20 -> 79.55
A21: 19 | B21: 何佩敏 | C21: 153020100626,253020100626 | D21: 182 | E21: =D21*0.2 -> 36.40 | F21: 86.17 | G21: =F21*0.5 -> 43.09 | H21: =E21+G21 -> 79.49
A22: 20 | B22: 程晓清 | C22: 153020100321,253020100321 | D22: 180.5 | E22: =D22*0.2 -> 36.10 | F22: 86.77 | G22: =F22*0.5 -> 43.39 | H22: =E22+G22 -> 79.49
A23: 21 | B23: 汪小婷 | C23: 153010905329,253010905329 | D23: 180.5 | E23: =D23*0.2 -> 36.10 | F23: 86.77 | G23: =F23*0.5 -> 43.39 | H23: =E23+G23 -> 79.49
A24: 22 | B24: 饶兴好 | C24: 153030209828,253030209828 | D24: 180.5 | E24: =D24*0.2 -> 36.10 | F24: 86.67 | G24: =F24*0.5 -> 43.34 | H24: =E24+G24 -> 79.44
A25: 23 | B25: 黄愈喻 | C25: 153020100622,253020100622 | D25: 181 | E25: =D25*0.2 -> 36.20 | F25: 85.3 | G25: =F25*0.5 -> 42.65 | H25: =E25+G25 -> 78.85
A26: 24 | B26: 李佳林 | C26: 153020100825,253020100825 | D26: 180.5 | E26: =D26*0.2 -> 36.10 | F26: 83.57 | G26: =F26*0.5 -> 41.79 | H26: =E26+G26 -> 77.89

Sheet 乐平十中.高中英语
A1: 乐平市2024年教师招聘成绩表 （乐平十中.高中英语）（招聘7人）
A2: 排名 | B2: 姓名 | C2: 准考证号 | D2: 笔试成绩 | E2: 笔试总分（×20%） | F2: 面试成绩 | G2: 面试总分（×50%） | H2: 总成绩
A3: 1 | B3: 詹欣欣 | C3: 153040204225,253040204225 | D3: 202 | E3: =D3*0.2 -> 40.40 | F3: 86.33 | G3: =F3*0.5 -> 43.17 | H3: =E3+G3 -> 83.57
A4: 2 | B4: 梁晓璇 | C4: 153230302625,253230302625 | D4: 192.5 | E4: =D4*0.2 -> 38.50 | F4: 86.57 | G4: =F4*0.5 -> 43.29 | H4: =E4+G4 -> 81.79
A5: 3 | B5: 王润 | C5: 153040204101,253040204101 | D5: 188 | E5: =D5*0.2 -> 37.60 | F5: 87.6 | G5: =F5*0.5 -> 43.80 | H5: =E5+G5 -> 81.40
A6: 4 | B6: 黄琴 | C6: 153020100305,253020100305 | D6: 190 | E6: =D6*0.2 -> 38.00 | F6: 86.73 | G6: =F6*0.5 -> 43.37 | H6: =E6+G6 -> 81.37
A7: 5 | B7: 丁园 | C7: 153230302205,253230302205 | D7: 189 | E7: =D7*0.2 -> 37.80 | F7: 84.33 | G7: =F7*0.5 -> 42.17 | H7: =E7+G7 -> 79.97
A8: 6 | B8: 刘琴 | C8: 153010905302,253010905302 | D8: 185.5 | E8: =D8*0.2 -> 37.10 | F8: 85.43 | G8: =F8*0.5 -> 42.72 | H8: =E8+G8 -> 79.82
A9: 7 | B9: 李佳欣 | C9: 153010905230,253010905230 | D9: 188.5 | E9: =D9*0.2 -> 37.70 | F9: 83.9 | G9: =F9*0.5 -> 41.95 | H9: =E9+G9 -> 79.65
A10: 8 | B10: 卢丽霞 | C10: 153040204822,253040204822 | D10: 182 | E10: =D10*0.2 -> 36.40 | F10: 85.53 | G10: =F10*0.5 -> 42.77 | H10: =E10+G10 -> 79.17
A11: 9 | B11: 胡燕 | C11: 153020101018,253020101018 | D11: 181.5 | E11: =D11*0.2 -> 36.30 | F11: 85.4 | G11: =F11*0.5 -> 42.70 | H11: =E11+G11 -> 79.00
A12: 10 | B12: 程海平 | C12: 153050107615,253050107615 | D12: 183 | E12: =D12*0.2 -> 36.60 | F12: 84.13 | G12: =F12*0.5 -> 42.07 | H12: =E12+G12 -> 78.67
A13: 11 | B13: 牛海霞 | C13: 153230302115,253230302115 | D13: 179.5 | E13: =D13*0.2 -> 35.90 | F13: 84.83 | G13: =F13*0.5 -> 42.42 | H13: =E13+G13 -> 78.32
A14: 12 | B14: 邓志鹏 | C14: 153010903708,253010903708 | D14: 177.5 | E14: =D14*0.2 -> 35.50 | F14: 85.13 | G14: =F14*0.5 -> 42.57 | H14: =E14+G14 -> 78.07
A15: 13 | B15: 程琳 | C15: 153020100316,253020100316 | D15: 177.5 | E15: =D15*0.2 -> 35.50 | F15: 84.77 | G15: =F15*0.5 -> 42.39 | H15: =E15+G15 -> 77.89
A16: 14 | B16: 程小英 | C16: 153020100306,253020100306 | D16: 177.5 | E16: =D16*0.2 -> 35.50 | F16: 84.73 | G16: =F16*0.5 -> 42.37 | H16: =E16+G16 -> 77.87
A17: 15 | B17: 熊威 | C17: 153230302918,253230302918 | D17: 177.5 | E17: =D17*0.2 -> 35.50 | F17: 83.83 | G17: =F17*0.5 -> 41.92 | H17: =E17+G17 -> 77.42
A18: 16 | B18: 刘佳 | C18: 153240503329,253240503329 | D18: 179.5 | E18: =D18*0.2 -> 35.90 | F18: 82.37 | G18: =F18*0.5 -> 41.19 | H18: =E18+G18 -> 77.09
A19: 17 | B19: 简乔 | C19: 153050107701,253050107701 | D19: 178.5 | E19: =D19*0.2 -> 35.70 | F19: 82.2 | G19: =F19*0.5 -> 41.10 | H19: =E19+G19 -> 76.80
A20: 18 | B20: 张依玲 | C20: 153060105807,253060105807 | D20: 179 | E20: =D20*0.2 -> 35.80 | F20: 80.6 | G20: =F20*0.5 -> 40.30 | H20: =E20+G20 -> 76.10
A21: 19 | B21: 熊宝群 | C21: 153010904822,253010904822 | D21: 190 | E21: =D21*0.2 -> 38.00 | F21: 0 | G21: =F21*0.5 -> 0.00 | H21: =E21+G21 -> 38.00

Sheet 高中思想政治.限高校应届生
A1: 乐平市2024年教师招聘成绩表 （高中思想政治.限高校应届生）（招聘4人）
A2: 排名 | B2: 姓名 | C2: 准考证号 | D2: 笔试成绩 | E2: 笔试总分（×20%） | F2: 面试成绩 | G2: 面试总分（×50%） | H2: 总成绩
A3: 1 | B3: 鲍会凤 | C3: 153020204607,253020204607 | D3: 176.5 | E3: =D3*0.2 -> 35.30 | F3: 86.70 | G3: =F3*0.5 -> 43.35 | H3: =E3+G3 -> 78.65
A4: 2 | B4: 夏玲莉 | C4: 153020204505,253020204505 | D4: 175.5 | E4: =D4*0.2 -> 35.10 | F4: 85.53 | G4: =F4*0.5 -> 42.77 | H4: =E4+G4 -> 77.87
A5: 3 | B5: 江淼洋 | C5: 153011801128,253011801128 | D5: 173 | E5: =D5*0.2 -> 34.60 | F5: 85.9 | G5: =F5*0.5 -> 42.95 | H5: =E5+G5 -> 77.55
A6: 4 | B6: 程嘉欣 | C6: 153220103723,253220103723 | D6: 168.5 | E6: =D6*0.2 -> 33.70 | F6: 87.1 | G6: =F6*0.5 -> 43.55 | H6: =E6+G6 -> 77.25
A7: 5 | B7: 董蓉蓉 | C7: 153011801305,253011801305 | D7: 171 | E7: =D7*0.2 -> 34.20 | F7: 86.07 | G7: =F7*0.5 -> 43.04 | H7: =E7+G7 -> 77.24
A8: 6 | B8: 卢思维 | C8: 153011801227,253011801227 | D8: 161.5 | E8: =D8*0.2 -> 32.30 | F8: 86.17 | G8: =F8*0.5 -> 43.09 | H8: =E8+G8 -> 75.39
A9: 7 | B9: 黄邵女 | C9: 153020204517,253020204517 | D9: 160 | E9: =D9*0.2 -> 32.00 | F9: 83.63 | G9: =F9*0.5 -> 41.82 | H9: =E9+G9 -> 73.82
A10: 8 | B10: 张乐彤 | C10: 153020204802,253020204802 | D10: 152.5 | E10: =D10*0.2 -> 30.50 | F10: 86.1 | G10: =F10*0.5 -> 43.05 | H10: =E10+G10 -> 73.55
A11: 9 | B11: 李钰颖 | C11: 153230303625,253230303625 | D11: 156 | E11: =D11*0.2 -> 31.20 | F11: 83.77 | G11: =F11*0.5 -> 41.89 | H11: =E11+G11 -> 73.09
A12: 10 | B12: 邵康晴 | C12: 153020204522,253020204522 | D12: 147 | E12: =D12*0.2 -> 29.40 | F12: 86.67 | G12: =F12*0.5 -> 43.34 | H12: =E12+G12 -> 72.74
A13: 11 | B13: 汪子荣 | C13: 153230303605,253230303605 | D13: 170.5 | E13: =D13*0.2 -> 34.10 | F13: 0 | G13: =F13*0.5 -> 0.00 | H13: =E13+G13 -> 34.10

Sheet 十中高中思想政治
A1: 乐平市2024年教师招聘成绩表 （十中高中思想政治）（招聘4人）
A2: 排名 | B2: 姓名 | C2: 准考证号 | D2: 笔试成绩 | E2: 笔试总分（×20%） | F2: 面试成绩 | G2: 面试总分（×50%） | H2: 总成绩
A3: 1 | B3: 黄珍香 | C3: 153230303503,253230303503 | D3: 160 | E3: =D3*0.2 -> 32.00 | F3: 87.77 | G3: =F3*0.5 -> 43.89 | H3: =E3+G3 -> 75.89
A4: 2 | B4: 莫婷婷 | C4: 153011800819,253011800819 | D4: 153.5 | E4: =D4*0.2 -> 30.70 | F4: 87.13 | G4: =F4*0.5 -> 43.57 | H4: =E4+G4 -> 74.27
A5: 3 | B5: 刘文娜 | C5: 153030210303,253030210303 | D5: 150 | E5: =D5*0.2 -> 30.00 | F5: 87.07 | G5: =F5*0.5 -> 43.54 | H5: =E5+G5 -> 73.54
A6: 4 | B6: 游路明 | C6: 153240504026,253240504026 | D6: 146 | E6: =D6*0.2 -> 29.20 | F6: 86.00 | G6: =F6*0.5 -> 43.00 | H6: =E6+G6 -> 72.20
A7: 5 | B7: 吴楚薇 | C7: 153020204507,253020204507 | D7: 142 | E7: =D7*0.2 -> 28.40 | F7: 87.53 | G7: =F7*0.5 -> 43.77 | H7: =E7+G7 -> 72.17
A8: 6 | B8: 周谷珍 | C8: 153011801002,253011801002 | D8: 144 | E8: =D8*0.2 -> 28.80 | F8: 85.47 | G8: =F8*0.5 -> 42.74 | H8: =E8+G8 -> 71.54
A9: 7 | B9: 张悦 | C9: 153040205223,253040205223 | D9: 144 | E9: =D9*0.2 -> 28.80 | F9: 83.77 | G9: =F9*0.5 -> 41.89 | H9: =E9+G9 -> 70.69
A10: 8 | B10: 伍清 | C10: 153011800820,253011800820 | D10: 134 | E10: =D10*0.2 -> 26.80 | F10: 87.53 | G10: =F10*0.5 -> 43.77 | H10: =E10+G10 -> 70.57
A11: 9 | B11: 王乐乐 | C11: 153230303607,253230303607 | D11: 140.5 | E11: =D11*0.2 -> 28.10 | F11: 84.07 | G11: =F11*0.5 -> 42.04 | H11: =E11+G11 -> 70.14
A12: 10 | B12: 肖丽丽 | C12: 153210602418,253210602418 | D12: 124.5 | E12: =D12*0.2 -> 24.90 | F12: 83.40 | G12: =F12*0.5 -> 41.70 | H12: =E12+G12 -> 66.60
A13: 11 | B13: 余琦慧 | C13: 153011801019,253011801019 | D13: 101 | E13: =D13*0.2 -> 20.20 | F13: 84.67 | G13: =F13*0.5 -> 42.34 | H13: =E13+G13 -> 62.54

Sheet 高中体育与健康
A1: 乐平市2024年教师招聘成绩表 (高中体育与健康）（招聘5人）
A2: 排名 | B2: 姓名 | C2: 准考证号 | D2: 笔试成绩 | E2: 笔试总分（×16%） | F2: 面试成绩 | G2: 面试总分（×60%） | H2: 总成绩
A3: 1 | B3: 叶小婷 | C3: 153020102804,253020102804 | D3: 203.5 | E3: =D3*0.16 -> 32.56 | F3: 81.77 | G3: =F3*0.6 -> 49.06 | H3: =E3+G3 -> 81.62
A4: 2 | B4: 程安平 | C4: 153020102901,253020102901 | D4: 201.5 | E4: =D4*0.16 -> 32.24 | F4: 81.47 | G4: =F4*0.6 -> 48.88 | H4: =E4+G4 -> 81.12
A5: 3 | B5: 饶雪锋 | C5: 153011102122,253011102122 | D5: 197.5 | E5: =D5*0.16 -> 31.60 | F5: 82.47 | G5: =F5*0.6 -> 49.48 | H5: =E5+G5 -> 81.08
A6: 4 | B6: 蔡潮平 | C6: 153020102724,253020102724 | D6: 196 | E6: =D6*0.16 -> 31.36 | F6: 82.4 | G6: =F6*0.6 -> 49.44 | H6: =E6+G6 -> 80.80
A7: 5 | B7: 黄诚 | C7: 153210704619,253210704619 | D7: 205 | E7: =D7*0.16 -> 32.80 | F7: 79.40 | G7: =F7*0.6 -> 47.64 | H7: =E7+G7 -> 80.44
A8: 6 | B8: 曾武峰 | C8: 153011102321,253011102321 | D8: 192 | E8: =D8*0.16 -> 30.72 | F8: 79.8 | G8: =F8*0.6 -> 47.88 | H8: =E8+G8 -> 78.60
A9: 7 | B9: 刘宏宝 | C9: 153011102106,253011102106 | D9: 183.5 | E9: =D9*0.16 -> 29.36 | F9: 79.87 | G9: =F9*0.6 -> 47.92 | H9: =E9+G9 -> 77.28
A10: 8 | B10: 刘婷薇 | C10: 153020102730,253020102730 | D10: 183.5 | E10: =D10*0.16 -> 29.36 | F10: 79.8 | G10: =F10*0.6 -> 47.88 | H10: =E10+G10 -> 77.24
A11: 9 | B11: 胡海平 | C11: 153011101707,253011101707 | D11: 191.5 | E11: =D11*0.16 -> 30.64 | F11: 77.37 | G11: =F11*0.6 -> 46.42 | H11: =E11+G11 -> 77.06
A12: 10 | B12: 胡发冰 | C12: 153020102807,253020102807 | D12: 180.5 | E12: =D12*0.16 -> 28.88 | F12: 80.23 | G12: =F12*0.6 -> 48.14 | H12: =E12+G12 -> 77.02
A13: 11 | B13: 刘玉虹 | C13: 153020102701,253020102701 | D13: 178 | E13: =D13*0.16 -> 28.48 | F13: 80.7 | G13: =F13*0.6 -> 48.42 | H13: =E13+G13 -> 76.90
A14: 12 | B14: 杨睿斐 | C14: 153020102911,253020102911 | D14: 176 | E14: =D14*0.16 -> 28.16 | F14: 79.1 | G14: =F14*0.6 -> 47.46 | H14: =E14+G14 -> 75.62
A15: 13 | B15: 宋七娣 | C15: 153210705010,253210705010 | D15: 166.5 | E15: =D15*0.16 -> 26.64 | F15: 80.07 | G15: =F15*0.6 -> 48.04 | H15: =E15+G15 -> 74.68

Sheet 十中高中美术
A1: 乐平市2024年教师招聘成绩表 (十中高中美术）（招聘4人）
A2: 排名 | B2: 姓名 | C2: 准考证号 | D2: 笔试成绩 | E2: 笔试总分（×16%） | F2: 面试成绩 | G2: 面试总分（×60%） | H2: 总成绩
A3: 1 | B3: 甘美迎 | C3: 153020101502,253020101502 | D3: 196.5 | E3: =D3*0.16 -> 31.44 | F3: 87.27 | G3: =F3*0.6 -> 52.36 | H3: =E3+G3 -> 83.80
A4: 2 | B4: 张思念 | C4: 153011702930,253011702930 | D4: 186 | E4: 29.76 | F4: 87.07 | G4: 52.24 | H4: 82.00
A5: 3 | B5: 陈紫琳 | C5: 153230304601,253230304601 | D5: 181.5 | E5: 29.04 | F5: 87.57 | G5: 52.54 | H5: 81.58
A6: 4 | B6: 潘艳 | C6: 153240601408,253240601408 | D6: 180 | E6: 28.80 | F6: 87.5 | G6: 52.50 | H6: 81.30
A7: 5 | B7: 肖茗君 | C7: 153240601105,253240601105 | D7: 174.5 | E7: =D7*0.16 -> 27.92 | F7: 87.93 | G7: =F7*0.6 -> 52.76 | H7: =E7+G7 -> 80.68
A8: 6 | B8: 张婕 | C8: 153050108604,253050108604 | D8: 177 | E8: =D8*0.16 -> 28.32 | F8: 87.07 | G8: =F8*0.6 -> 52.24 | H8: =E8+G8 -> 80.56
A9: 7 | B9: 胡雯静 | C9: 153020101617,253020101617 | D9: 176 | E9: =D9*0.16 -> 28.16 | F9: 87.27 | G9: =F9*0.6 -> 52.36 | H9: =E9+G9 -> 80.52
A10: 8 | B10: 叶婉婷 | C10: 153230304512,253230304512 | D10: 172.5 | E10: =D10*0.16 -> 27.60 | F10: 87.83 | G10: =F10*0.6 -> 52.70 | H10: =E10+G10 -> 80.30
A11: 9 | B11: 陈沁 | C11: 153030210516,253030210516 | D11: 173.5 | E11: =D11*0.16 -> 27.76 | F11: 86.97 | G11: =F11*0.6 -> 52.18 | H11: =E11+G11 -> 79.94
A12: 10 | B12: 黄洋 | C12: 153020101717,253020101717 | D12: 171.5 | E12: 27.44 | F12: 87.23 | G12: 52.34 | H12: 79.78
A13: 11 | B13: 黄梦颖 | C13: 153220104122,253220104122 | D13: 168 | E13: 26.88 | F13: 87.1 | G13: 52.26 | H13: 79.14
A14: 12 | B14: 熊宛鸿 | C14: 153011703007,253011703007 | D14: 167 | E14: 26.72 | F14: 87.13 | G14: 52.28 | H14: 79.00

Sheet 乐平十中.高中音乐
A1: 乐平市2024年教师招聘成绩表 (乐平十中.高中音乐）（招聘2人）
A2: 排名 | B2: 姓名 | C2: 准考证号 | D2: 笔试成绩 | E2: 笔试总分（×16%） | F2: 面试成绩 | G2: 面试总分（×60%） | H2: 总成绩
A3: 1 | B3: 程英 | C3: 153020203424,253020203424 | D3: 178.5 | E3: =D3*0.16 -> 28.56 | F3: 81.30 | G3: =F3*0.6 -> 48.78 | H3: =E3+G3 -> 77.34
A4: 2 | B4: 王芸洋 | C4: 153011801925,253011801925 | D4: 158.5 | E4: =D4*0.16 -> 25.36 | F4: 85.97 | G4: =F4*0.6 -> 51.58 | H4: =E4+G4 -> 76.94
A5: 3 | B5: 林婉蓉 | C5: 153020203409,253020203409 | D5: 150.5 | E5: =D5*0.16 -> 24.08 | F5: 85.4 | G5: =F5*0.6 -> 51.24 | H5: =E5+G5 -> 75.32
A6: 4 | B6: 李鑫 | C6: 153011802018,253011802018 | D6: 162.5 | E6: =D6*0.16 -> 26.00 | F6: 81.07 | G6: =F6*0.6 -> 48.64 | H6: =E6+G6 -> 74.64
A7: 5 | B7: 王昊 | C7: 153011801624,253011801624 | D7: 160.5 | E7: =D7*0.16 -> 25.68 | F7: 80.7 | G7: =F7*0.6 -> 48.42 | H7: =E7+G7 -> 74.10
A8: 6 | B8: 徐慧玲 | C8: 153020203411,253020203411 | D8: 152 | E8: =D8*0.16 -> 24.32 | F8: 82.73 | G8: =F8*0.6 -> 49.64 | H8: =E8+G8 -> 73.96

Sheet 高中历史.限高校应届生
A1: 乐平市2024年教师招聘成绩表 （高中历史.限高校应届生）（招聘6人）
A2: 排名 | B2: 姓名 | C2: 准考证号 | D2: 笔试成绩 | E2: 笔试总分（×20%） | F2: 面试成绩 | G2: 面试总分（×50%） | H2: 总成绩
A3: 1 | B3: 万依萍 | C3: 153011802219,253011802219 | D3: 198.5 | E3: =D3*0.2 -> 39.70 | F3: 87.57 | G3: =F3*0.5 -> 43.79 | H3: =E3+G3 -> 83.49
A4: 2 | B4: 宁佳慧 | C4: 153020203021,253020203021 | D4: 199 | E4: =D4*0.2 -> 39.80 | F4: 85.80 | G4: =F4*0.5 -> 42.90 | H4: =E4+G4 -> 82.70
A5: 3 | B5: 徐如萍 | C5: 153011802222,253011802222 | D5: 193.5 | E5: =D5*0.2 -> 38.70 | F5: 87.33 | G5: =F5*0.5 -> 43.67 | H5: =E5+G5 -> 82.37
A6: 4 | B6: 余诺玲 | C6: 153220104304,253220104304 | D6: 197 | E6: =D6*0.2 -> 39.40 | F6: 85.87 | G6: =F6*0.5 -> 42.94 | H6: =E6+G6 -> 82.34
A7: 5 | B7: 孙妍 | C7: 153230400504,253230400504 | D7: 196.5 | E7: =D7*0.2 -> 39.30 | F7: 85.90 | G7: =F7*0.5 -> 42.95 | H7: =E7+G7 -> 82.25
A8: 6 | B8: 詹妙 | C8: 153011802225,253011802225 | D8: 190.5 | E8: =D8*0.2 -> 38.10 | F8: 86.90 | G8: =F8*0.5 -> 43.45 | H8: =E8+G8 -> 81.55
A9: 7 | B9: 郑義之 | C9: 153011802410,253011802410 | D9: 181.5 | E9: =D9*0.2 -> 36.30 | F9: 86.00 | G9: =F9*0.5 -> 43.00 | H9: =E9+G9 -> 79.30
A10: 8 | B10: 蒋晶芬 | C10: 153230400305,253230400305 | D10: 176 | E10: =D10*0.2 -> 35.20 | F10: 87.70 | G10: =F10*0.5 -> 43.85 | H10: =E10+G10 -> 79.05
A11: 9 | B11: 徐如平 | C11: 153011802514,253011802514 | D11: 172.5 | E11: =D11*0.2 -> 34.50 | F11: 84.93 | G11: =F11*0.5 -> 42.47 | H11: =E11+G11 -> 76.97
A12: 10 | B12: 熊志高 | C12: 153030210725,253030210725 | D12: 168 | E12: =D12*0.2 -> 33.60 | F12: 85.40 | G12: =F12*0.5 -> 42.70 | H12: =E12+G12 -> 76.30
A13: 11 | B13: 程雨欣 | C13: 153011802511,253011802511 | D13: 186.5 | E13: =D13*0.2 -> 37.30 | F13: 0.00 | G13: =F13*0.5 -> 0.00 | H13: =E13+G13 -> 37.30
A14: 12 | B14: 江佳颖 | C14: 153020203007,253020203007 | D14: 174.5 | E14: =D14*0.2 -> 34.90 | F14: 0.00 | G14: =F14*0.5 -> 0.00 | H14: =E14+G14 -> 34.90

Sheet 乐平十中.高中历史
A1: 乐平市2024年教师招聘成绩表 （乐平十中.高中历史）（招聘4人）
A2: 排名 | B2: 姓名 | C2: 准考证号 | D2: 笔试成绩 | E2: 笔试总分（×20%） | F2: 面试成绩 | G2: 面试总分（×50%） | H2: 总成绩
A3: 1 | B3: 易鼎 | C3: 153230400308,253230400308 | D3: 181 | E3: =D3*0.2 -> 36.20 | F3: 82.70 | G3: =F3*0.5 -> 41.35 | H3: =E3+G3 -> 77.55
A4: 2 | B4: 李慧芳 | C4: 153020203020,253020203020 | D4: 167 | E4: =D4*0.2 -> 33.40 | F4: 87.27 | G4: =F4*0.5 -> 43.64 | H4: =E4+G4 -> 77.04
A5: 3 | B5: 彭秀琴 | C5: 153240601912,253240601912 | D5: 167.5 | E5: =D5*0.2 -> 33.50 | F5: 85.87 | G5: =F5*0.5 -> 42.94 | H5: =E5+G5 -> 76.44
A6: 4 | B6: 周玲 | C6: 153240601916,253240601916 | D6: 159 | E6: =D6*0.2 -> 31.80 | F6: 85.27 | G6: =F6*0.5 -> 42.64 | H6: =E6+G6 -> 74.44
A7: 5 | B7: 徐云 | C7: 153011802513,253011802513 | D7: 161.5 | E7: =D7*0.2 -> 32.30 | F7: 83.23 | G7: =F7*0.5 -> 41.62 | H7: =E7+G7 -> 73.92
A8: 6 | B8: 管中蓉 | C8: 153230400502,253230400502 | D8: 155 | E8: =D8*0.2 -> 31.00 | F8: 85.57 | G8: =F8*0.5 -> 42.79 | H8: =E8+G8 -> 73.79
A9: 7 | B9: 游莹莹 | C9: 153210705525,253210705525 | D9: 149 | E9: =D9*0.2 -> 29.80 | F9: 84.37 | G9: =F9*0.5 -> 42.19 | H9: =E9+G9 -> 71.99
A10: 8 | B10: 吴莹璋 | C10: 153020203010,253020203010 | D10: 149 | E10: =D10*0.2 -> 29.80 | F10: 83.87 | G10: =F10*0.5 -> 41.94 | H10: =E10+G10 -> 71.74
A11: 9 | B11: 李玮芳 | C11: 153210705816,253210705816 | D11: 138.5 | E11: =D11*0.2 -> 27.70 | F11: 85.73 | G11: =F11*0.5 -> 42.87 | H11: =E11+G11 -> 70.57
A12: 10 | B12: 杜饶骏 | C12: 153230400501,253230400501 | D12: 139 | E12: =D12*0.2 -> 27.80 | F12: 80.20 | G12: =F12*0.5 -> 40.10 | H12: =E12+G12 -> 67.90

Sheet 高中地理.限高校应届生
A1: 乐平市2024年教师招聘成绩表 （高中地理.限高校应届生）（招聘6人）
A2: 排名 | B2: 姓名 | C2: 准考证号 | D2: 笔试成绩 | E2: 笔试总分（×20%） | F2: 面试成绩 | G2: 面试总分（×50%） | H2: 总成绩
A3: 1 | B3: 陈晨 | C3: 153040105520,253040105520 | D3: 191.5 | E3: =D3*0.2 -> 38.30 | F3: 88.60 | G3: =F3*0.5 -> 44.30 | H3: =E3+G3 -> 82.60
A4: 2 | B4: 余建芳 | C4: 153040105727,253040105727 | D4: 187 | E4: 37.40 | F4: 87.30 | G4: 43.65 | H4: 81.05
A5: 3 | B5: 段艳靖 | C5: 153040105714,253040105714 | D5: 185.5 | E5: 37.10 | F5: 87.07 | G5: 43.54 | H5: 80.64
A6: 4 | B6: 孙艳红 | C6: 153020202212,253020202212 | D6: 184 | E6: 36.80 | F6: 87.33 | G6: 43.67 | H6: 80.47
A7: 5 | B7: 何慧玲 | C7: 153020202201,253020202201 | D7: 181.5 | E7: 36.30 | F7: 87.90 | G7: 43.95 | H7: 80.25
A8: 6 | B8: 汪非霞 | C8: 153020202118,253020202118 | D8: 181 | E8: 36.20 | F8: 86.20 | G8: 43.10 | H8: 79.30
A9: 7 | B9: 陈敏黠 | C9: 153220104603,253220104603 | D9: 175.5 | E9: 35.10 | F9: 86.77 | G9: 43.39 | H9: 78.49
A10: 8 | B10: 李海宝 | C10: 153020202214,253020202214 | D10: 168 | E10: =D10*0.2 -> 33.60 | F10: 84.2 | G10: =F10*0.5 -> 42.10 | H10: =E10+G10 -> 75.70
A11: 9 | B11: 张弘 | C11: 153020202101,253020202101 | D11: 149 | E11: =D11*0.2 -> 29.80 | F11: 84.27 | G11: =F11*0.5 -> 42.14 | H11: =E11+G11 -> 71.94
A12: 10 | B12: 葛思雯 | C12: 153230400812,253230400812 | D12: 150.5 | E12: =D12*0.2 -> 30.10 | F12: 82.97 | G12: =F12*0.5 -> 41.49 | H12: =E12+G12 -> 71.59
A13: 11 | B13: 徐谢亲 | C13: 153020202128,253020202128 | D13: 174.5 | E13: =D13*0.2 -> 34.90 | F13: 0 | G13: =F13*0.5 -> 0.00 | H13: =E13+G13 -> 34.90
A14: 12 | B14: 周万青 | C14: 153250210024,253250210024 | D14: 172 | E14: =D14*0.2 -> 34.40 | F14: 0 | G14: =F14*0.5 -> 0.00 | H14: =E14+G14 -> 34.40
A15: 13 | B15: 洪媛 | C15: 153020202209,253020202209 | D15: 160.5 | E15: =D15*0.2 -> 32.10 | F15: 0 | G15: =F15*0.5 -> 0.00 | H15: =E15+G15 -> 32.10
A16: 14 | B16: 李文娟 | C16: 153230400714,253230400714 | D16: 153.5 | E16: =D16*0.2 -> 30.70 | F16: 0 | G16: =F16*0.5 -> 0.00 | H16: =E16+G16 -> 30.70

Sheet 乐平十中.高中地理
A1: 乐平市2024年教师招聘成绩表 （乐平十中.高中地理）（招聘6人）
A2: 排名 | B2: 姓名 | C2: 准考证号 | D2: 笔试成绩 | E2: 笔试总分（×20%） | F2: 面试成绩 | G2: 面试总分（×50%） | H2: 总成绩
A3: 1 | B3: 曹春霞 | C3: 153040105510,253040105510 | D3: 199 | E3: =D3*0.2 -> 39.80 | F3: 84.23 | G3: =F3*0.5 -> 42.12 | H3: =E3+G3 -> 81.92
A4: 2 | B4: 谢敏宇 | C4: 153220104510,253220104510 | D4: 168.5 | E4: =D4*0.2 -> 33.70 | F4: 84.77 | G4: =F4*0.5 -> 42.39 | H4: =E4+G4 -> 76.09
A5: 3 | B5: 冯垚欣 | C5: 153230400704,253230400704 | D5: 170 | E5: =D5*0.2 -> 34.00 | F5: 83.63 | G5: =F5*0.5 -> 41.82 | H5: =E5+G5 -> 75.82
A6: 4 | B6: 汪倩 | C6: 153040105715,253040105715 | D6: 159 | E6: =D6*0.2 -> 31.80 | F6: 87.63 | G6: =F6*0.5 -> 43.82 | H6: =E6+G6 -> 75.62
A7: 5 | B7: 徐朦 | C7: 153020202204,253020202204 | D7: 164.5 | E7: =D7*0.2 -> 32.90 | F7: 84.03 | G7: =F7*0.5 -> 42.02 | H7: =E7+G7 -> 74.92
A8: 6 | B8: 黄婷 | C8: 153020202206,253020202206 | D8: 169 | E8: =D8*0.2 -> 33.80 | F8: 81.63 | G8: =F8*0.5 -> 40.82 | H8: =E8+G8 -> 74.62
A9: 7 | B9: 刘子龙 | C9: 153220104526,253220104526 | D9: 163.5 | E9: =D9*0.2 -> 32.70 | F9: 83.30 | G9: =F9*0.5 -> 41.65 | H9: =E9+G9 -> 74.35
A10: 8 | B10: 张海建 | C10: 153210706321,253210706321 | D10: 151 | E10: =D10*0.2 -> 30.20 | F10: 88.2 | G10: =F10*0.5 -> 44.10 | H10: =E10+G10 -> 74.30
A11: 9 | B11: 罗素萍 | C11: 153040105506,253040105506 | D11: 155.5 | E11: =D11*0.2 -> 31.10 | F11: 82.47 | G11: =F11*0.5 -> 41.24 | H11: =E11+G11 -> 72.34
A12: 10 | B12: 程江浩 | C12: 153020202226,253020202226 | D12: 156.5 | E12: =D12*0.2 -> 31.30 | F12: 0 | G12: =F12*0.5 -> 0.00 | H12: =E12+G12 -> 31.30
A13: 11 | B13: 陈惠超 | C13: 153020202228,253020202228 | D13: 142.5 | E13: =D13*0.2 -> 28.50 | F13: 0 | G13: =F13*0.5 -> 0.00 | H13: =E13+G13 -> 28.50

Sheet 高中化学
A1: 乐平市2024年教师招聘成绩表 （高中化学）（招聘5人）
A2: 排名 | B2: 姓名 | C2: 准考证号 | D2: 笔试成绩 | E2: 笔试总分（×20%） | F2: 面试成绩 | G2: 面试总分（×50%） | H2: 总成绩
A3: 1 | B3: 吴晓安 | C3: 153011103114,253011103114 | D3: 208 | E3: =D3*0.2 -> 41.60 | F3: 87.43 | G3: =F3*0.5 -> 43.72 | H3: =E3+G3 -> 85.32
A4: 2 | B4: 张少琪 | C4: 153011102818,253011102818 | D4: 207.5 | E4: =D4*0.2 -> 41.50 | F4: 86.00 | G4: =F4*0.5 -> 43.00 | H4: =E4+G4 -> 84.50
A5: 3 | B5: 毕振鹏 | C5: 153011102828,253011102828 | D5: 200.5 | E5: =D5*0.2 -> 40.10 | F5: 85.03 | G5: =F5*0.5 -> 42.52 | H5: =E5+G5 -> 82.62
A6: 4 | B6: 叶冬琴 | C6: 153020104105,253020104105 | D6: 199 | E6: =D6*0.2 -> 39.80 | F6: 85.30 | G6: =F6*0.5 -> 42.65 | H6: =E6+G6 -> 82.45
A7: 5 | B7: 张颖文 | C7: 153020104126,253020104126 | D7: 200.5 | E7: =D7*0.2 -> 40.10 | F7: 83.63 | G7: =F7*0.5 -> 41.82 | H7: =E7+G7 -> 81.92
A8: 6 | B8: 李建民 | C8: 153020104116,253020104116 | D8: 192.5 | E8: =D8*0.2 -> 38.50 | F8: 86.63 | G8: =F8*0.5 -> 43.32 | H8: =E8+G8 -> 81.82
A9: 7 | B9: 王琦 | C9: 153230401418,253230401418 | D9: 177.5 | E9: =D9*0.2 -> 35.50 | F9: 85.57 | G9: =F9*0.5 -> 42.79 | H9: =E9+G9 -> 78.29
A10: 8 | B10: 徐菊金 | C10: 153230401023,253230401023 | D10: 172 | E10: =D10*0.2 -> 34.40 | F10: 82.33 | G10: =F10*0.5 -> 41.17 | H10: =E10+G10 -> 75.57
A11: 9 | B11: 汪天霞 | C11: 153020104010,253020104010 | D11: 166 | E11: =D11*0.2 -> 33.20 | F11: 84.33 | G11: =F11*0.5 -> 42.17 | H11: =E11+G11 -> 75.37
A12: 10 | B12: 黄银平 | C12: 153020104102,253020104102 | D12: 164.5 | E12: =D12*0.2 -> 32.90 | F12: 84.57 | G12: =F12*0.5 -> 42.29 | H12: =E12+G12 -> 75.19
A13: 11 | B13: 王良定 | C13: 153011103022,253011103022 | D13: 167.5 | E13: =D13*0.2 -> 33.50 | F13: 81.53 | G13: =F13*0.5 -> 40.77 | H13: =E13+G13 -> 74.27
A14: 12 | B14: 王少安 | C14: 153040303012,253040303012 | D14: 178 | E14: =D14*0.2 -> 35.60 | F14: 0.00 | G14: =F14*0.5 -> 0.00 | H14: =E14+G14 -> 35.60
A15: 13 | B15: 黄波 | C15: 153040303228,253040303228 | D15: 163 | E15: =D15*0.2 -> 32.60 | F15: 0.00 | G15: =F15*0.5 -> 0.00 | H15: =E15+G15 -> 32.60

Sheet 高中物理
A1: 乐平市2024年教师招聘成绩表 （高中物理）（招聘5人）
A2: 排名 | B2: 姓名 | C2: 准考证号 | D2: 笔试成绩 | E2: 笔试总分（×20%） | F2: 面试成绩 | G2: 面试总分（×50%） | H2: 总成绩
A3: 1 | B3: 黄厚仁 | C3: 153020102610,253020102610 | D3: 168 | E3: =D3*0.2 -> 33.60 | F3: 85.00 | G3: =F3*0.5 -> 42.50 | H3: =E3+G3 -> 76.10
A4: 2 | B4: 吴第钦 | C4: 153020102523,253020102523 | D4: 167 | E4: =D4*0.2 -> 33.40 | F4: 82.37 | G4: =F4*0.5 -> 41.19 | H4: =E4+G4 -> 74.59
A5: 3 | B5: 占超超 | C5: 153020102410,253020102410 | D5: 158.5 | E5: =D5*0.2 -> 31.70 | F5: 82.67 | G5: =F5*0.5 -> 41.34 | H5: =E5+G5 -> 73.04
A6: 4 | B6: 吴亚南 | C6: 153011701217,253011701217 | D6: 144 | E6: =D6*0.2 -> 28.80 | F6: 84.47 | G6: =F6*0.5 -> 42.24 | H6: =E6+G6 -> 71.04
A7: 5 | B7: 徐加国 | C7: 153020102411,253020102411 | D7: 142.5 | E7: =D7*0.2 -> 28.50 | F7: 85.00 | G7: =F7*0.5 -> 42.50 | H7: =E7+G7 -> 71.00
A8: 6 | B8: 詹欢欢 | C8: 153020102501,253020102501 | D8: 153.5 | E8: =D8*0.2 -> 30.70 | F8: 80.30 | G8: =F8*0.5 -> 40.15 | H8: =E8+G8 -> 70.85
A9: 7 | B9: 李乐天 | C9: 153060106818,253060106818 | D9: 134.5 | E9: =D9*0.2 -> 26.90 | F9: 84.23 | G9: =F9*0.5 -> 42.12 | H9: =E9+G9 -> 69.02
A10: 8 | B10: 曹文强 | C10: 153020102601,253020102601 | D10: 113 | E10: =D10*0.2 -> 22.60 | F10: 81.73 | G10: =F10*0.5 -> 40.87 | H10: =E10+G10 -> 63.47
A11: 9 | B11: 黄新林 | C11: 153020102406,253020102406 | D11: 108 | E11: =D11*0.2 -> 21.60 | F11: 83.67 | G11: =F11*0.5 -> 41.84 | H11: =E11+G11 -> 63.44
A12: 10 | B12: 严春雷 | C12: 153020102413,253020102413 | D12: 105 | E12: =D12*0.2 -> 21.00 | F12: 78.97 | G12: =F12*0.5 -> 39.49 | H12: =E12+G12 -> 60.49
A13: 11 | B13: 黄奕超 | C13: 153020102422,253020102422 | D13: 148.5 | E13: =D13*0.2 -> 29.70 | F13: 0.00 | G13: =F13*0.5 -> 0.00 | H13: =E13+G13 -> 29.70

Sheet 高中生物
A1: 乐平市2024年教师招聘成绩表 （高中生物）（招聘4人）
A2: 排名 | B2: 姓名 | C2: 准考证号 | D2: 笔试成绩 | E2: 笔试总分（×20%） | F2: 面试成绩 | G2: 面试总分（×50%） | H2: 总成绩
A3: 1 | B3: 程丽洁 | C3: 153020106001,253020106001 | D3: 190.5 | E3: =D3*0.2 -> 38.10 | F3: 85.27 | G3: =F3*0.5 -> 42.64 | H3: =E3+G3 -> 80.74
A4: 2 | B4: 程美霞 | C4: 153011702012,253011702012 | D4: 172 | E4: =D4*0.2 -> 34.40 | F4: 85.10 | G4: =F4*0.5 -> 42.55 | H4: =E4+G4 -> 76.95
A5: 3 | B5: 段姝琴 | C5: 153011702213,253011702213 | D5: 176 | E5: =D5*0.2 -> 35.20 | F5: 83.43 | G5: =F5*0.5 -> 41.72 | H5: =E5+G5 -> 76.92
A6: 4 | B6: 石硙 | C6: 153020105802,253020105802 | D6: 158 | E6: =D6*0.2 -> 31.60 | F6: 86.03 | G6: =F6*0.5 -> 43.02 | H6: =E6+G6 -> 74.62
A7: 5 | B7: 范海霞 | C7: 153011702122,253011702122 | D7: 164 | E7: =D7*0.2 -> 32.80 | F7: 82.93 | G7: =F7*0.5 -> 41.47 | H7: =E7+G7 -> 74.27
A8: 6 | B8: 彭展秋 | C8: 153011701702,253011701702 | D8: 151.5 | E8: 30.30 | F8: 85.60 | G8: 42.80 | H8: 73.10
A9: 7 | B9: 江乐梅 | C9: 153020105911,253020105911 | D9: 147.5 | E9: 29.50 | F9: 84.63 | G9: 42.32 | H9: 71.82
A10: 8 | B10: 曹颖霞 | C10: 153020105914,253020105914 | D10: 144.5 | E10: 28.90 | F10: 84.63 | G10: 42.32 | H10: 71.22
A11: 9 | B11: 汪昊洋 | C11: 153020105808,253020105808 | D11: 140 | E11: 28.00 | F11: 84.50 | G11: 42.25 | H11: 70.25
A12: 10 | B12: 胡奇 | C12: 153040303427,253040303427 | D12: 140 | E12: 28.00 | F12: 0.00 | G12: 0.00 | H12: 28.00
